[Event "Early-Titled-Tuesday-Blitz-May-14-2024"]
[Site "Chess.com"]
[Date "2024.05.14"]
[Round "3"]
[White "bescmelasti"]
[Black "Acva-Alenok"]
[Result "1-0"]
[WhiteElo "2620"]
[BlackElo "2364"]
[TimeControl "180+1"]
[EndTime "8:27:51 PDT"]
[Termination "bescmelasti won by resignation"]

1. e4 {[%clk 0:03:00.9]} 1... c6 {[%clk 0:02:55.6]} 2. d4 {[%clk 0:03:00.6]}
2... d5 {[%clk 0:02:56]} 3. exd5 {[%clk 0:02:58.6]} 3... cxd5 {[%clk 0:02:56.9]}
4. Bd3 {[%clk 0:02:59.4]} 4... Nc6 {[%clk 0:02:54.9]} 5. c3 {[%clk 0:02:59.5]}
5... Nf6 {[%clk 0:02:55.4]} 6. h3 {[%clk 0:02:58.4]} 6... g6 {[%clk 0:02:53.2]}
7. Nf3 {[%clk 0:02:58.3]} 7... Bf5 {[%clk 0:02:53.4]} 8. Be2 {[%clk 0:02:57.6]}
8... Bg7 {[%clk 0:02:51.6]} 9. O-O {[%clk 0:02:57.6]} 9... O-O {[%clk
0:02:52.1]} 10. Bf4 {[%clk 0:02:58.3]} 10... Rc8 {[%clk 0:02:52]} 11. Nbd2
{[%clk 0:02:58.8]} 11... Na5 {[%clk 0:02:45.3]} 12. Re1 {[%clk 0:02:58.6]} 12...
Qb6 {[%clk 0:02:44.5]} 13. b4 {[%clk 0:02:46.2]} 13... Nc4 {[%clk 0:02:44.2]}
14. Nxc4 {[%clk 0:02:37.2]} 14... dxc4 {[%clk 0:02:43.6]} 15. Ne5 {[%clk
0:02:30.4]} 15... Nd5 {[%clk 0:02:30.9]} 16. Qd2 {[%clk 0:02:20.1]} 16... Nxf4
{[%clk 0:01:17.2]} 17. Qxf4 {[%clk 0:02:21]} 17... Be6 {[%clk 0:01:15.5]} 18. a4
{[%clk 0:02:15.6]} 18... Bd5 {[%clk 0:01:12.3]} 19. a5 {[%clk 0:02:13.2]} 19...
Qb5 {[%clk 0:01:05]} 20. Bf3 {[%clk 0:02:12.1]} 20... e6 {[%clk 0:00:46.6]} 21.
h4 {[%clk 0:02:03.7]} 21... h5 {[%clk 0:00:42.1]} 22. g4 {[%clk 0:02:03.2]}
22... hxg4 {[%clk 0:00:34.9]} 23. Bxg4 {[%clk 0:02:03.6]} 23... Bc6 {[%clk
0:00:20.6]} 24. h5 {[%clk 0:02:02.6]} 24... gxh5 {[%clk 0:00:18.6]} 25. Bxh5
{[%clk 0:01:50.9]} 25... f6 {[%clk 0:00:12]} 26. Nxc6 {[%clk 0:01:43]} 26...
Rxc6 {[%clk 0:00:12.9]} 27. Bf3 {[%clk 0:01:40.2]} 27... Rc7 {[%clk 0:00:10.6]}
28. Qxc7 {[%clk 0:01:38.5]} 1-0

[Event "Early-Titled-Tuesday-Blitz-May-14-2024"]
[Site "Chess.com"]
[Date "2024.05.14"]
[Round "3"]
[White "RobertoJBM"]
[Black "meoluoi91"]
[Result "0-1"]
[WhiteElo "2843"]
[BlackElo "2576"]
[TimeControl "180+1"]
[EndTime "8:27:52 PDT"]
[Termination "meoluoi91 won by resignation"]

1. d4 {[%clk 0:03:00.9]} 1... d5 {[%clk 0:02:56.7]} 2. Nf3 {[%clk 0:03:00.6]}
2... Nf6 {[%clk 0:02:56.4]} 3. e3 {[%clk 0:02:59.6]} 3... g6 {[%clk 0:02:52]} 4.
Be2 {[%clk 0:02:58.4]} 4... Bg7 {[%clk 0:02:52.2]} 5. O-O {[%clk 0:02:59.3]}
5... O-O {[%clk 0:02:52.4]} 6. b3 {[%clk 0:02:57.3]} 6... c5 {[%clk 0:02:50.5]}
7. Bb2 {[%clk 0:02:56.3]} 7... cxd4 {[%clk 0:02:50.2]} 8. Nxd4 {[%clk
0:02:56.1]} 8... Nc6 {[%clk 0:02:50]} 9. c4 {[%clk 0:02:55.4]} 9... dxc4 {[%clk
0:02:47.7]} 10. Nxc6 {[%clk 0:02:53.9]} 10... bxc6 {[%clk 0:02:45.3]} 11. Qxd8
{[%clk 0:02:49.6]} 11... Rxd8 {[%clk 0:02:46.2]} 12. Bxc4 {[%clk 0:02:49.5]}
12... a5 {[%clk 0:02:41.3]} 13. Rc1 {[%clk 0:02:36.5]} 13... a4 {[%clk
0:02:33.3]} 14. Kf1 {[%clk 0:02:31.8]} 14... Ng4 {[%clk 0:02:24.4]} 15. Bxg7
{[%clk 0:02:29.6]} 15... Kxg7 {[%clk 0:02:22.9]} 16. h3 {[%clk 0:02:07.2]} 16...
Ne5 {[%clk 0:02:21.7]} 17. Ke1 {[%clk 0:02:04]} 17... axb3 {[%clk 0:02:16.7]}
18. Bxb3 {[%clk 0:02:02.4]} 18... Nd3+ {[%clk 0:02:15.9]} 19. Kd2 {[%clk
0:01:58.5]} 19... Nxc1+ {[%clk 0:02:12.5]} 20. Kxc1 {[%clk 0:01:59.4]} 20... c5
{[%clk 0:01:59.3]} 21. Nd2 {[%clk 0:01:57.9]} 21... Bb7 {[%clk 0:01:58.2]} 22.
f3 {[%clk 0:01:57]} 22... Ba6 {[%clk 0:01:43.7]} 23. Bc2 {[%clk 0:01:47.3]}
23... Bd3 {[%clk 0:01:34.2]} 24. a4 {[%clk 0:01:38.9]} 24... c4 {[%clk
0:01:32.9]} 25. Nb1 {[%clk 0:01:33.5]} 25... Bf1 {[%clk 0:01:29.5]} 26. g3
{[%clk 0:01:28.4]} 26... Bxh3 {[%clk 0:01:19]} 27. Nc3 {[%clk 0:01:28.3]} 27...
Bf1 {[%clk 0:01:14.3]} 28. a5 {[%clk 0:01:26.5]} 28... Ra6 {[%clk 0:01:11.2]}
29. Be4 {[%clk 0:01:22.3]} 29... Rb8 {[%clk 0:01:06.9]} 30. Kc2 {[%clk
0:01:19.6]} 30... Bd3+ {[%clk 0:01:03.7]} 31. Bxd3 {[%clk 0:01:20.1]} 31...
cxd3+ {[%clk 0:01:04.6]} 32. Kxd3 {[%clk 0:01:21]} 32... Rba8 {[%clk 0:01:05.1]}
33. Nd5 {[%clk 0:01:21.3]} 33... e6 {[%clk 0:01:00.7]} 34. Nf4 {[%clk
0:01:11.6]} 34... Rxa5 {[%clk 0:01:00.3]} 35. Rb1 {[%clk 0:01:10.6]} 35... Ra3+
{[%clk 0:00:58.4]} 36. Ke4 {[%clk 0:01:07.7]} 36... R8a4+ {[%clk 0:00:55.3]} 0-1

[Event "Early-Titled-Tuesday-Blitz-May-14-2024"]
[Site "Chess.com"]
[Date "2024.05.14"]
[Round "3"]
[White "Darko-Dimitrijevic"]
[Black "RedFirePanda"]
[Result "0-1"]
[WhiteElo "2212"]
[BlackElo "2468"]
[TimeControl "180+1"]
[EndTime "8:27:54 PDT"]
[Termination "RedFirePanda won by resignation"]

1. c4 {[%clk 0:03:00.9]} 1... Nf6 {[%clk 0:02:52.8]} 2. b3 {[%clk 0:02:59.8]}
2... d5 {[%clk 0:02:51.4]} 3. Bb2 {[%clk 0:02:59.3]} 3... Bf5 {[%clk 0:02:48.5]}
4. g3 {[%clk 0:02:57.2]} 4... e6 {[%clk 0:02:48.5]} 5. Bg2 {[%clk 0:02:56.6]}
5... c6 {[%clk 0:02:49]} 6. d3 {[%clk 0:02:54.7]} 6... Be7 {[%clk 0:02:46.7]} 7.
Nd2 {[%clk 0:02:53.7]} 7... O-O {[%clk 0:02:45.8]} 8. Qc2 {[%clk 0:02:53]} 8...
Nbd7 {[%clk 0:02:42.8]} 9. e4 {[%clk 0:02:52.5]} 9... dxe4 {[%clk 0:02:42.8]}
10. dxe4 {[%clk 0:02:52]} 10... Bg6 {[%clk 0:02:43.3]} 11. Ngf3 {[%clk
0:02:41.8]} 11... Nc5 {[%clk 0:02:42.6]} 12. Ne5 {[%clk 0:02:40.1]} 12... Bd6
{[%clk 0:02:06.8]} 13. Nxg6 {[%clk 0:02:37.4]} 13... hxg6 {[%clk 0:02:07.7]} 14.
e5 {[%clk 0:02:32.2]} 14... Bxe5 {[%clk 0:02:07.9]} 15. Bxe5 {[%clk 0:02:31.1]}
15... Nd3+ {[%clk 0:02:07.9]} 16. Ke2 {[%clk 0:02:27.9]} 16... Nxe5 {[%clk
0:02:08]} 17. f4 {[%clk 0:02:25.8]} 17... Ned7 {[%clk 0:02:04.3]} 18. Nf3 {[%clk
0:02:23.3]} 18... Qc7 {[%clk 0:02:02.8]} 19. Rhd1 {[%clk 0:02:22.3]} 19... e5
{[%clk 0:02:02.2]} 20. f5 {[%clk 0:02:15.6]} 20... e4 {[%clk 0:02:00.7]} 21. Ng1
{[%clk 0:02:00.2]} 21... gxf5 {[%clk 0:01:57.4]} 22. Bh3 {[%clk 0:01:57.4]}
22... Qe5 {[%clk 0:01:55.5]} 23. Rab1 {[%clk 0:01:45.5]} 23... Nc5 {[%clk
0:01:55.2]} 24. Kf1 {[%clk 0:01:43.4]} 24... Nd3 {[%clk 0:01:42.5]} 25. Ne2
{[%clk 0:01:42.5]} 25... f4 {[%clk 0:01:41.4]} 26. Nxf4 {[%clk 0:01:41.4]} 26...
Nxf4 {[%clk 0:01:42.3]} 27. gxf4 {[%clk 0:01:41.1]} 27... Qxf4+ {[%clk
0:01:42.9]} 28. Kg1 {[%clk 0:01:41.2]} 28... Rad8 {[%clk 0:01:36.9]} 29. Qe2
{[%clk 0:01:36.9]} 29... e3 {[%clk 0:01:25]} 30. Rf1 {[%clk 0:01:32.8]} 30...
Qg5+ {[%clk 0:01:24.5]} 31. Kh1 {[%clk 0:01:32.7]} 31... Rd2 {[%clk 0:01:22.8]}
32. Qf3 {[%clk 0:01:32]} 32... Qe5 {[%clk 0:01:14.7]} 33. Qg3 {[%clk 0:01:20.4]}
33... Qxg3 {[%clk 0:01:05.8]} 34. hxg3 {[%clk 0:01:19.6]} 34... Ne4 {[%clk
0:01:06.1]} 35. Rf3 {[%clk 0:01:15.8]} 35... e2 {[%clk 0:01:05.9]} 36. Re1
{[%clk 0:01:14.3]} 36... Rd1 {[%clk 0:01:03.4]} 0-1

[Event "Early-Titled-Tuesday-Blitz-May-14-2024"]
[Site "Chess.com"]
[Date "2024.05.14"]
[Round "3"]
[White "snowlord"]
[Black "SaqoChess_Twitch"]
[Result "1-0"]
[WhiteElo "2933"]
[BlackElo "2681"]
[TimeControl "180+1"]
[EndTime "8:27:56 PDT"]
[Termination "snowlord won by resignation"]

1. Nf3 {[%clk 0:03:00.9]} 1... d5 {[%clk 0:02:58.8]} 2. e3 {[%clk 0:03:00.1]}
2... e6 {[%clk 0:02:58.8]} 3. c4 {[%clk 0:02:59.6]} 3... Nf6 {[%clk 0:02:54.2]}
4. Nc3 {[%clk 0:02:59.2]} 4... Be7 {[%clk 0:02:51.6]} 5. b3 {[%clk 0:02:59.2]}
5... c5 {[%clk 0:02:47.8]} 6. Bb2 {[%clk 0:02:51.5]} 6... dxc4 {[%clk
0:02:45.5]} 7. bxc4 {[%clk 0:02:49.2]} 7... Nc6 {[%clk 0:02:46.4]} 8. Be2 {[%clk
0:02:40.2]} 8... b6 {[%clk 0:02:43.3]} 9. O-O {[%clk 0:02:40.7]} 9... Bb7 {[%clk
0:02:43]} 10. d3 {[%clk 0:02:25]} 10... O-O {[%clk 0:02:40.7]} 11. a3 {[%clk
0:02:13.4]} 11... h6 {[%clk 0:02:39.2]} 12. Nd2 {[%clk 0:02:12.9]} 12... Ne5
{[%clk 0:02:34.8]} 13. Qc2 {[%clk 0:02:09.1]} 13... Ng6 {[%clk 0:02:34.2]} 14.
Bf3 {[%clk 0:02:05.5]} 14... Bxf3 {[%clk 0:02:33.8]} 15. Nxf3 {[%clk 0:02:06.4]}
15... Qd7 {[%clk 0:02:33.1]} 16. a4 {[%clk 0:02:06.3]} 16... Rfd8 {[%clk
0:02:32.3]} 17. Rfd1 {[%clk 0:02:06.6]} 17... Qc6 {[%clk 0:02:30]} 18. a5 {[%clk
0:02:03.5]} 18... Ng4 {[%clk 0:02:29.4]} 19. axb6 {[%clk 0:02:01.4]} 19... axb6
{[%clk 0:02:30.3]} 20. Nb5 {[%clk 0:01:49]} 20... Rxa1 {[%clk 0:02:26.4]} 21.
Rxa1 {[%clk 0:01:42.8]} 21... Ra8 {[%clk 0:02:25.8]} 22. Qd1 {[%clk 0:01:33.8]}
22... Rxa1 {[%clk 0:02:23.5]} 23. Qxa1 {[%clk 0:01:33.5]} 23... Bf6 {[%clk
0:02:24.2]} 24. Bxf6 {[%clk 0:01:21]} 24... Nxf6 {[%clk 0:02:25.1]} 25. h3
{[%clk 0:01:14.1]} 25... Qb7 {[%clk 0:02:19]} 26. Ne5 {[%clk 0:01:07.1]} 26...
Nxe5 {[%clk 0:02:16.7]} 27. Qxe5 {[%clk 0:01:08]} 27... Qa8 {[%clk 0:02:05.5]}
28. Qc7 {[%clk 0:00:59.7]} 28... Qa1+ {[%clk 0:02:00.7]} 29. Kh2 {[%clk
0:00:59.7]} 29... Qf1 {[%clk 0:02:01.6]} 30. Nd6 {[%clk 0:00:47.7]} 30... Qxf2
{[%clk 0:01:55.7]} 31. Qxf7+ {[%clk 0:00:47.9]} 31... Kh7 {[%clk 0:01:55.7]} 32.
Qxe6 {[%clk 0:00:48.2]} 32... h5 {[%clk 0:01:54.9]} 33. Qf5+ {[%clk 0:00:43.6]}
33... Qxf5 {[%clk 0:01:54.8]} 34. Nxf5 {[%clk 0:00:44.5]} 34... Nd7 {[%clk
0:01:53.3]} 35. d4 {[%clk 0:00:40.4]} 35... g6 {[%clk 0:01:51.6]} 36. Ne7 {[%clk
0:00:39.4]} 36... cxd4 {[%clk 0:01:50.8]} 37. exd4 {[%clk 0:00:39.5]} 37... Kg7
{[%clk 0:01:51.3]} 38. Kg3 {[%clk 0:00:38.4]} 38... Kf7 {[%clk 0:01:49.8]} 39.
Nd5 {[%clk 0:00:38.8]} 39... g5 {[%clk 0:01:38.7]} 40. Kf3 {[%clk 0:00:37.1]}
40... Ke6 {[%clk 0:01:36.4]} 41. g3 {[%clk 0:00:37.6]} 41... Kd6 {[%clk
0:01:34.9]} 42. Nxb6 {[%clk 0:00:37.6]} 42... Nxb6 {[%clk 0:01:31.8]} 43. c5+
{[%clk 0:00:38]} 43... Kc6 {[%clk 0:01:32.6]} 44. cxb6 {[%clk 0:00:38.9]} 44...
Kxb6 {[%clk 0:01:33.5]} 45. Ke4 {[%clk 0:00:38.6]} 45... Kc6 {[%clk 0:01:34.1]}
46. Kf5 {[%clk 0:00:39]} 46... Kd5 {[%clk 0:01:34.6]} 47. Kxg5 {[%clk
0:00:39.2]} 47... h4 {[%clk 0:01:35.5]} 48. gxh4 {[%clk 0:00:39.1]} 1-0

[Event "Early-Titled-Tuesday-Blitz-May-14-2024"]
[Site "Chess.com"]
[Date "2024.05.14"]
[Round "3"]
[White "briesmas"]
[Black "gau248"]
[Result "0-1"]
[WhiteElo "2326"]
[BlackElo "2604"]
[TimeControl "180+1"]
[EndTime "8:27:56 PDT"]
[Termination "gau248 won on time"]

1. e4 {[%clk 0:03:00.9]} 1... e5 {[%clk 0:02:54]} 2. Nf3 {[%clk 0:03:00.5]} 2...
Nc6 {[%clk 0:02:54]} 3. Bb5 {[%clk 0:03:00.5]} 3... a6 {[%clk 0:02:52.9]} 4. Ba4
{[%clk 0:03:00.4]} 4... d6 {[%clk 0:02:53]} 5. O-O {[%clk 0:02:59.1]} 5... Bd7
{[%clk 0:02:47.8]} 6. Nc3 {[%clk 0:02:50.2]} 6... g6 {[%clk 0:02:45.6]} 7. d3
{[%clk 0:02:04.3]} 7... Bg7 {[%clk 0:02:44]} 8. Nd5 {[%clk 0:01:58.4]} 8... h6
{[%clk 0:02:42.1]} 9. Be3 {[%clk 0:01:48.1]} 9... Nge7 {[%clk 0:02:41.5]} 10.
Qd2 {[%clk 0:01:47.3]} 10... g5 {[%clk 0:02:38.1]} 11. c3 {[%clk 0:01:39.9]}
11... Nxd5 {[%clk 0:02:35.6]} 12. exd5 {[%clk 0:01:39.1]} 12... Ne7 {[%clk
0:02:36.5]} 13. Bxd7+ {[%clk 0:01:35.7]} 13... Qxd7 {[%clk 0:02:37.4]} 14. c4
{[%clk 0:01:27.4]} 14... f5 {[%clk 0:02:36.7]} 15. Qb4 {[%clk 0:01:25.2]} 15...
b6 {[%clk 0:02:31]} 16. a4 {[%clk 0:01:23.4]} 16... a5 {[%clk 0:02:30]} 17. Qb5
{[%clk 0:01:23.7]} 17... Qxb5 {[%clk 0:02:28.4]} 18. axb5 {[%clk 0:01:24.6]}
18... Kd7 {[%clk 0:02:25.9]} 19. h3 {[%clk 0:01:10.3]} 19... f4 {[%clk
0:02:22.5]} 20. Bd2 {[%clk 0:01:07.3]} 20... Bf6 {[%clk 0:02:23.4]} 21. Rfe1
{[%clk 0:00:48.3]} 21... h5 {[%clk 0:02:21]} 22. d4 {[%clk 0:00:43.5]} 22...
exd4 {[%clk 0:02:14.2]} 23. Re6 {[%clk 0:00:42.7]} 23... Raf8 {[%clk 0:02:12]}
24. Rae1 {[%clk 0:00:25.5]} 24... Nf5 {[%clk 0:02:10.7]} 25. h4 {[%clk
0:00:17.1]} 25... g4 {[%clk 0:02:02.9]} 26. Ng5 {[%clk 0:00:17.3]} 26... Nxh4
{[%clk 0:01:53.4]} 27. Bxf4 {[%clk 0:00:17]} 27... Ng6 {[%clk 0:01:49.3]} 28.
Bd2 {[%clk 0:00:15.7]} 28... Ne5 {[%clk 0:01:48.5]} 29. Ne4 {[%clk 0:00:14.2]}
29... Bd8 {[%clk 0:01:44.8]} 30. b3 {[%clk 0:00:13.4]} 30... h4 {[%clk
0:01:43.4]} 31. Bg5 {[%clk 0:00:12.9]} 31... h3 {[%clk 0:01:41.8]} 0-1

[Event "Early-Titled-Tuesday-Blitz-May-14-2024"]
[Site "Chess.com"]
[Date "2024.05.14"]
[Round "3"]
[White "Arteler"]
[Black "Lion-Al-Messi"]
[Result "1/2-1/2"]
[WhiteElo "2236"]
[BlackElo "2568"]
[TimeControl "180+1"]
[EndTime "8:27:59 PDT"]
[Termination "Game drawn by agreement"]

1. e4 {[%clk 0:03:00.9]} 1... e6 {[%clk 0:02:59.2]} 2. Nf3 {[%clk 0:02:59.9]}
2... d5 {[%clk 0:02:59.4]} 3. exd5 {[%clk 0:03:00.3]} 3... exd5 {[%clk
0:02:59.6]} 4. d4 {[%clk 0:03:00.8]} 4... Bg4 {[%clk 0:02:59.5]} 5. Bd3 {[%clk
0:02:57.4]} 5... Nc6 {[%clk 0:02:59]} 6. c3 {[%clk 0:02:56]} 6... Bd6 {[%clk
0:02:59]} 7. O-O {[%clk 0:02:56.4]} 7... Nge7 {[%clk 0:02:58.7]} 8. h3 {[%clk
0:02:57]} 8... Bh5 {[%clk 0:02:56.5]} 9. Bg5 {[%clk 0:02:51.8]} 9... Qd7 {[%clk
0:02:55.7]} 10. Nbd2 {[%clk 0:02:49.7]} 10... O-O-O {[%clk 0:02:54.6]} 11. b4
{[%clk 0:02:45.3]} 11... f6 {[%clk 0:02:54.8]} 12. Bh4 {[%clk 0:02:38.7]} 12...
g5 {[%clk 0:02:54.9]} 13. Bg3 {[%clk 0:02:39.5]} 13... Bg6 {[%clk 0:02:55.1]}
14. Qc2 {[%clk 0:02:34.8]} 14... Bxd3 {[%clk 0:02:50]} 15. Qxd3 {[%clk
0:02:35.7]} 15... Nf5 {[%clk 0:02:49.4]} 16. Bxd6 {[%clk 0:02:29.7]} 16... Nxd6
{[%clk 0:02:49.7]} 17. a4 {[%clk 0:02:25.4]} 17... h5 {[%clk 0:02:48.8]} 18. Nh2
{[%clk 0:01:40.3]} 18... g4 {[%clk 0:02:46.5]} 19. h4 {[%clk 0:01:40.3]} 19...
f5 {[%clk 0:02:45.9]} 20. a5 {[%clk 0:01:39.7]} 20... a6 {[%clk 0:02:44.5]} 21.
Nb3 {[%clk 0:01:35.2]} 21... Ne4 {[%clk 0:02:42.4]} 22. Nc5 {[%clk 0:01:34.9]}
22... Qe7 {[%clk 0:02:41.5]} 23. Rfe1 {[%clk 0:01:29.2]} 23... Qxh4 {[%clk
0:02:38.3]} 24. Nxe4 {[%clk 0:01:19.3]} 24... fxe4 {[%clk 0:02:35.9]} 25. Qg3
{[%clk 0:01:08]} 25... Qxg3 {[%clk 0:02:35.9]} 26. fxg3 {[%clk 0:01:08.9]} 26...
Ne7 {[%clk 0:02:35.8]} 27. Nf1 {[%clk 0:01:06.7]} 27... Nf5 {[%clk 0:02:35.7]}
28. Rab1 {[%clk 0:01:02.4]} 28... h4 {[%clk 0:02:35.3]} 29. gxh4 {[%clk
0:01:02.2]} 29... g3 {[%clk 0:02:35.6]} 30. Ne3 {[%clk 0:00:59.4]} 30... Nxh4
{[%clk 0:02:35]} 31. Rf1 {[%clk 0:00:55.2]} 31... Rdf8 {[%clk 0:02:33.7]} 32.
Nxd5 {[%clk 0:00:49.9]} 32... Nf3+ {[%clk 0:02:14.6]} 33. gxf3 {[%clk
0:00:42.3]} 33... exf3 {[%clk 0:02:15.5]} 34. Ne7+ {[%clk 0:00:42.9]} 34... Kd7
{[%clk 0:02:12]} 35. Ng6 {[%clk 0:00:43.8]} 35... g2 {[%clk 0:01:47.9]} 36. Nxh8
{[%clk 0:00:42.8]} 1/2-1/2

[Event "Early-Titled-Tuesday-Blitz-May-14-2024"]
[Site "Chess.com"]
[Date "2024.05.14"]
[Round "3"]
[White "KINGOF2SOAP"]
[Black "Anu-triz"]
[Result "0-1"]
[WhiteElo "2416"]
[BlackElo "2289"]
[TimeControl "180+1"]
[EndTime "8:28:00 PDT"]
[Termination "Anu-triz won by checkmate"]

1. d4 {[%clk 0:03:00.9]} 1... Nf6 {[%clk 0:02:56.4]} 2. Nf3 {[%clk 0:03:00.5]}
2... d5 {[%clk 0:02:53.7]} 3. e3 {[%clk 0:02:59.4]} 3... e6 {[%clk 0:02:53.1]}
4. Bd3 {[%clk 0:02:58.8]} 4... c5 {[%clk 0:02:53.1]} 5. b3 {[%clk 0:02:58.5]}
5... cxd4 {[%clk 0:02:50.9]} 6. exd4 {[%clk 0:02:58.2]} 6... Nc6 {[%clk
0:02:46.6]} 7. a3 {[%clk 0:02:56.8]} 7... Be7 {[%clk 0:02:41.5]} 8. Bb2 {[%clk
0:02:53.4]} 8... O-O {[%clk 0:02:28.2]} 9. O-O {[%clk 0:02:53]} 9... b6 {[%clk
0:02:16.7]} 10. Ne5 {[%clk 0:02:52.4]} 10... Bb7 {[%clk 0:02:14.3]} 11. f4
{[%clk 0:02:50.6]} 11... g6 {[%clk 0:01:59.5]} 12. Nd2 {[%clk 0:02:45.6]} 12...
Rc8 {[%clk 0:01:57]} 13. g4 {[%clk 0:02:26.4]} 13... Nxe5 {[%clk 0:01:54]} 14.
fxe5 {[%clk 0:02:23.5]} 14... Ne4 {[%clk 0:01:53.3]} 15. Nxe4 {[%clk 0:02:06.1]}
15... dxe4 {[%clk 0:01:53]} 16. Be2 {[%clk 0:02:05.5]} 16... Bg5 {[%clk
0:01:41.7]} 17. c4 {[%clk 0:01:48.3]} 17... Be3+ {[%clk 0:01:38.2]} 18. Kh1
{[%clk 0:01:45.3]} 18... f5 {[%clk 0:01:24.7]} 19. gxf5 {[%clk 0:01:36.3]} 19...
Rxf5 {[%clk 0:01:09]} 20. Bg4 {[%clk 0:01:27.4]} 20... Rxf1+ {[%clk 0:01:06]}
21. Qxf1 {[%clk 0:01:28.3]} 21... Bxd4 {[%clk 0:00:58.2]} 22. Bxe6+ {[%clk
0:01:28]} 22... Kh8 {[%clk 0:00:57.4]} 23. Bxd4 {[%clk 0:01:12.3]} 23... e3+
{[%clk 0:00:48]} 24. Kg1 {[%clk 0:01:10]} 24... Qg5+ {[%clk 0:00:45]} 25. Bg4
{[%clk 0:00:58.9]} 25... Qxg4+ {[%clk 0:00:35.3]} 26. Qg2 {[%clk 0:00:53.6]}
26... Qxg2# {[%clk 0:00:35.3]} 0-1

[Event "Early-Titled-Tuesday-Blitz-May-14-2024"]
[Site "Chess.com"]
[Date "2024.05.14"]
[Round "3"]
[White "CSB7"]
[Black "Msb2"]
[Result "0-1"]
[WhiteElo "2770"]
[BlackElo "3061"]
[TimeControl "180+1"]
[EndTime "8:28:04 PDT"]
[Termination "Msb2 won by resignation"]

1. d4 {[%clk 0:03:00.9]} 1... d5 {[%clk 0:02:59.3]} 2. c4 {[%clk 0:02:59.8]}
2... e6 {[%clk 0:02:59.6]} 3. Nc3 {[%clk 0:02:57.2]} 3... Bb4 {[%clk 0:02:59.5]}
4. Nf3 {[%clk 0:02:54.9]} 4... Nf6 {[%clk 0:02:59.7]} 5. Qa4+ {[%clk 0:02:51.3]}
5... Nc6 {[%clk 0:02:59.8]} 6. a3 {[%clk 0:02:50.4]} 6... Bxc3+ {[%clk
0:02:59.3]} 7. bxc3 {[%clk 0:02:51.3]} 7... Bd7 {[%clk 0:03:00]} 8. Qc2 {[%clk
0:02:47.9]} 8... Na5 {[%clk 0:03:00]} 9. cxd5 {[%clk 0:02:42.9]} 9... exd5
{[%clk 0:03:00.9]} 10. Bg5 {[%clk 0:02:42.2]} 10... h6 {[%clk 0:03:01.3]} 11.
Bh4 {[%clk 0:02:42.1]} 11... Rc8 {[%clk 0:03:01.6]} 12. e3 {[%clk 0:02:36.7]}
12... c5 {[%clk 0:03:02]} 13. Bd3 {[%clk 0:02:29.3]} 13... cxd4 {[%clk
0:02:52.4]} 14. exd4 {[%clk 0:02:28.5]} 14... O-O {[%clk 0:02:45.9]} 15. O-O
{[%clk 0:02:27.7]} 15... Qb6 {[%clk 0:02:07.8]} 16. Ne5 {[%clk 0:02:23]} 16...
Be6 {[%clk 0:01:35.9]} 17. Rab1 {[%clk 0:01:44.5]} 17... Qc7 {[%clk 0:01:35.4]}
18. Rfc1 {[%clk 0:01:41.8]} 18... Nd7 {[%clk 0:01:31]} 19. Bg3 {[%clk
0:01:36.7]} 19... Nxe5 {[%clk 0:01:31.3]} 20. Bxe5 {[%clk 0:01:37.6]} 20... Qe7
{[%clk 0:01:31.9]} 21. Qa4 {[%clk 0:01:21.8]} 21... b6 {[%clk 0:01:29.1]} 22.
Qb4 {[%clk 0:01:22]} 22... Qg5 {[%clk 0:01:15.1]} 23. Ba6 {[%clk 0:00:52]} 23...
Nc6 {[%clk 0:01:14.4]} 24. Qd6 {[%clk 0:00:47.9]} 24... Nxe5 {[%clk 0:01:09.4]}
25. Bxc8 {[%clk 0:00:45.8]} 25... Nc4 {[%clk 0:01:06]} 26. Qc7 {[%clk 0:00:33]}
26... Rxc8 {[%clk 0:01:04.6]} 27. Qxa7 {[%clk 0:00:32.9]} 27... Bh3 {[%clk
0:01:02.7]} 28. g3 {[%clk 0:00:33.4]} 28... Qf5 {[%clk 0:01:01.3]} 0-1